Workbook

Sheet 10-30
A1: x | B1: y | C1: Power | D1: eta | H1: Power | K1: eta
A2: 14.59772727 | B2: 34.14318182 | C2: =10^((A2-$H$11)/$H$11) -> 0.2467780708 | D2: =10^((B2-$K$11)/$K$11) -> 0.3344970463 | H2: 10^6 | I2: 260.45 | K2: 100 | L2: 195.34
A3: 37.18863636 | B3: 43.87045455 | C3: =10^((A3-$H$11)/$H$11) -> 0.9986788742 | D3: =10^((B3-$K$11)/$K$11) -> 0.4718346276 | H3: 10^5 | I3: 223.24 | K3: 10 | L3: 130.22
A4: 26.3 | B4: 49.7 | C4: 0.5090954874 | D4: 0.5798606075 | H4: 10^4 | I4: 186.04 | K4: 1 | L4: 65.11
A5: 26.31818182 | B5: 57 | C5: 0.509668596 | D5: 0.7506570374 | H5: 10^3 | I5: 148.83 | K5: 0.1 | L5: 0
A6: 37.22727273 | B6: 60.5 | C6: 1.001069422 | D6: 0.8495652577 | H6: 10^2 | I6: 111.62
A7: 14.18181818 | B7: 64.31818182 | C7: 0.2405078287 | D7: 0.9723861454 | H7: 10^1 | I7: 74.41
A8: 37.13333333 | B8: 71.46666667 | C8: 0.9952670402 | D8: 1.252073006 | H8: 10^0 | I8: 37.21
A9: 37.26666667 | B9: 77.86666667 | C9: 1.003512735 | D9: 1.570091076 | H9: 10^-1 | I9: 0
A10: 25.4 | B10: 81.13333333 | C10: 0.4815176392 | D10: 1.76236699
A11: 38.06666667 | B11: 83.2 | C11: 1.054441487 | D11: 1.895996389 | H11: 37.21 | K11: 65.11
A12: 79 | B12: 80.33333333 | C12: 13.27654868 | D12: 1.713205463
A13: 37.06666667 | B13: 81.2 | C13: 0.9911696354 | D13: 1.766526912
A14: 47.8 | B14: 90.8 | C14: 1.925754466 | D14: 2.480636029
A15: 59.33333333 | B15: 91.06666667 | C15: 3.931456144 | D15: 2.504140431
A16: 66.93333333 | B16: 95.4 | C16: 6.292157802 | D16: 2.918856316
A17: 74.6 | B17: 89.73333333 | C17: 10.11200811 | D17: 2.388803986
A18: 70.73333333 | B18: 103.2666667 | C18: 7.960176383 | D18: 3.855084407
A19: 74.2 | B19: 110.5333333 | C19: 9.864784693 | D19: 4.984709936
A20: 42.26666667 | B20: 107.6 | C20: 1.367399348 | D20: 4.493532924
A21: 108.125 | B21: 118.875 | C21: 80.50167024 | D21: 6.695089888
A22: 122.7333333 | B22: 129.5333333 | C22: 198.7908947 | D22: 9.760088259
A23: 146.6666667 | B23: 119.4666667 | C23: 874.163687 | D23: 6.836653953
A24: 148.5333333 | B24: 147.6 | C24: 981.2021426 | D24: 18.48982849
A25: 160.2666667 | B25: 147.6 | C25: 2028.08386 | D25: 18.48982849
A26: 179.5333333 | B26: 153 | C26: 6681.406066 | D26: 22.38048283
A27: 167.5333333 | B27: 136.1333333 | C27: 3179.610437 | D27: 12.3259574
A28: 171.0666667 | B28: 136.8666667 | C28: 3956.6758 | D28: 12.64979983
A29: 181.1333333 | B29: 137.4666667 | C29: 7376.783894 | D29: 12.92108036
A30: 188.4666667 | B30: 156.4 | C30: 11613.06078 | D30: 25.23996642
A31: 195 | B31: 166.0666667 | C31: 17399.09823 | D31: 35.52674921
A32: 240.4666667 | B32: 165.7333333 | C32: 290015.0237 | D32: 35.11041226
A33: 243.3333333 | B33: 166.5333333 | C33: 346306.5601 | D33: 36.11792801
A34: 240.4 | B34: 156.2 | C34: 288821.0638 | D34: 25.06207631
A35: 250.4666667 | B35: 162.1333333 | C35: 538474.8914 | D35: 30.91326544

Sheet 30-90
A1: x | B1: y | C1: Power | D1: eta | H1: Power | K1: eta
A2: 35.71544936 | B2: 53.62827559 | C2: =10^((A2-$H$11)/$H$11) -> 0.9788582733 | D2: =10^((B2-$K$11)/$K$11) -> 0.7079916632 | H2: 10^6 | I2: 252.345 | K2: 100 | L2: 189.2588
A3: 35.89544934 | B3: 59.55827649 | C3: =10^((A3-$H$11)/$H$11) -> 0.9901771053 | D3: =10^((B3-$K$11)/$K$11) -> 0.8790647529 | H3: 10^5 | I3: 216.3 | K3: 10 | L3: 126.17
A4: 41.69544869 | B4: 60.07827657 | C4: 1.434169619 | D4: 0.8959072721 | H4: 10^4 | I4: 180.25 | K4: 1 | L4: 63.09
A5: 46.29544817 | B5: 60.59827665 | C5: 1.923982239 | D5: 0.9130724871 | H5: 10^3 | I5: 144.2 | K5: 0.1 | L5: 0
A6: 60.21544659 | B6: 62.918277 | C6: 4.68092184 | D6: 0.9937522534 | H6: 10^2 | I6: 108.15
A7: 52.1754475 | B7: 69.71827803 | C7: 2.800965995 | D7: 1.273681016 | H7: 10^1 | I7: 72.1
A8: 46.05544819 | B8: 70.71827818 | C8: 1.894713891 | D8: 1.321025042 | H8: 10^0 | I8: 36.05
A9: 46.37544816 | B9: 73.27827857 | C9: 1.933838484 | D9: 1.450400732 | H9: 10^-1 | I9: 0
A10: 46.21544817 | B10: 75.95827897 | C10: 1.91417623 | D10: 1.599436545
A11: 60.89544652 | B11: 72.43827844 | C11: 4.888707778 | D11: 1.406609983 | H11: 36.05 | K11: 63.09
A12: 52.13544751 | B12: 72.95827852 | C12: 2.793819 | D12: 1.433560052
A13: 52.33544748 | B13: 85.31828039 | C13: 2.829737278 | D13: 2.250746191
A14: 52.05544752 | B14: 76.27827902 | C14: 2.77957967 | D14: 1.618225852
A15: 52.13544751 | B15: 87.91828078 | C15: 2.793819 | D15: 2.474785134
A16: 36.13544931 | B16: 83.31828008 | C16: 1.005472738 | D16: 2.092308763
A17: 61.49544645 | B17: 89.83828107 | C17: 5.079694885 | D17: 2.654423529
A18: 60.65544654 | B18: 107.9582838 | C18: 4.8143389 | D18: 5.142555781
A19: 46.69544812 | B19: 111.6382844 | C19: 1.973770973 | D19: 5.881774778
A20: 61.0154465 | B20: 122.9582861 | C20: 4.926321916 | D20: 8.890672943
A21: 71.93544527 | B21: 111.9582844 | C21: 9.895446043 | D21: 5.950870653
A22: 81.33544421 | B22: 115.4382849 | C22: 18.03783066 | D22: 6.75678057
A23: 35.86544934 | B23: 126.2782866 | C23: 0.9882815848 | D23: 10.0359359
A24: 77.9154446 | B24: 128.928287 | C24: 14.49826647 | D24: 11.05506683
A25: 86.19877699 | B25: 114.4616181 | C25: 24.60874774 | D25: 6.520175453
A26: 101.6987752 | B26: 113.711618 | C26: 66.22894805 | D26: 6.344121638
A27: 106.1987747 | B27: 119.1282855 | C27: 88.2824694 | D27: 7.730858041
A28: 97.28210908 | B28: 127.2116201 | C28: 49.94969554 | D28: 10.38368637
A29: 99.61544215 | B29: 135.2116213 | C29: 57.97726939 | D29: 13.9044739
A30: 109.365441 | B30: 139.0449552 | C30: 108.0725563 | D30: 15.99242533
A31: 142.282104 | B31: 148.5449566 | C31: 884.7060583 | D31: 22.62001523
A32: 194.4654314 | B32: 165.9782926 | C32: 24792.79111 | D32: 42.73835103
A33: 189.565432 | B33: 147.2282898 | C33: 18130.22135 | D33: 21.55873294

Sheet 1.8-9
A1: x | B1: y | C1: Power | D1: eta | H1: Power | K1: eta
A2: 11.28111674 | B2: 72.17433386 | C2: =10^((A2-$H$11)/$H$11) -> 0.2068024659 | D2: =10^((B2-$K$11)/$K$11) -> 1.423958802 | H2: 10^6 | I2: 250.2728 | K2: 100 | L2: 187.7046
A3: 25.64445257 | B3: 50.19433003 | C3: =10^((A3-$H$11)/$H$11) -> 0.5215877041 | D3: =10^((B3-$K$11)/$K$11) -> 0.6341774631 | H3: 10^5 | I3: 214.52 | K3: 10 | L3: 125.14
A4: 31.31112023 | B4: 62.61099886 | C4: 0.7513383052 | D4: 1.001509903 | H4: 10^4 | I4: 178.77 | K4: 1 | L4: 62.57
A5: 35.89445436 | B5: 62.19433212 | C5: 1.00934743 | D5: 0.9862704887 | H5: 10^3 | I5: 143.01 | K5: 0.1 | L5: 0
A6: 38.39445479 | B6: 64.52766586 | C6: 1.185688925 | D6: 1.074700898 | H6: 10^2 | I6: 107.26
A7: 39.47778832 | B7: 74.11100086 | C7: 1.271375386 | D7: 1.529147681 | H7: 10^1 | I7: 71.51
A8: 35.41112094 | B8: 78.64433498 | C8: 0.978409961 | D8: 1.806764837 | H8: 10^0 | I8: 35.75
A9: 31.01112018 | B9: 78.769335 | C9: 0.736960008 | D9: 1.815095135 | H9: 10^-1 | I9: 0
A10: 48.91112329 | B10: 77.54433479 | C10: 2.334228186 | D10: 1.735087243
A11: 31.20112021 | B11: 87.13433646 | C11: 0.7460339771 | D11: 2.469389988 | H11: 35.75 | K11: 62.57
A12: 65.6111262 | B12: 86.69433638 | C12: 6.84346826 | D12: 2.429727436
A13: 65.96112626 | B13: 91.99433731 | C13: 6.999491151 | D13: 2.952994939
A14: 57.36112476 | B14: 98.2943384 | C14: 4.02260127 | D14: 3.723487931
A15: 51.31112371 | B15: 101.2943389 | C15: 2.724433349 | D15: 4.158112728 | H15: 250.2728 | I15: =H15/H11 -> 7.000637762
A16: 48.16112316 | B16: 101.694339 | C16: 2.22415108 | D16: 4.219773108
A17: 60.71112535 | B17: 115.6943414 | C17: 4.991295663 | D17: 7.063802364
A18: 66.1611263 | B18: 112.6443409 | C18: 7.09023901 | D18: 6.313833515
A19: 66.01112627 | B19: 108.9943403 | C19: 7.022068642 | D19: 5.520246242
A20: 74.71112778 | B20: 104.6443395 | C20: 12.29763946 | D20: 4.703664136
A21: 77.56112828 | B21: 108.6943402 | C21: 14.77549536 | D21: 5.459637649
A22: 84.41112947 | B22: 99.84433867 | C22: 22.96944358 | D22: 3.942050739
A23: 88.0111301 | B23: 104.4443395 | C23: 28.96341673 | D23: 4.669172112
A24: 96.11113151 | B24: 105.0443396 | C24: 48.8003862 | D24: 4.773414463
A25: 88.36113016 | B25: 109.1443403 | C25: 29.62374799 | D25: 5.550802385
A26: 83.81112937 | B26: 112.1443408 | C26: 22.09872691 | D26: 6.198720789
A27: 88.16113013 | B27: 118.1743419 | C27: 29.2445941 | D27: 7.738809476
A28: 83.16112926 | B28: 115.9343415 | C28: 21.1926582 | D28: 7.126466442
A29: 71.60112724 | B29: 119.6943421 | C29: 10.06534659 | D29: 8.18402507
A30: 89.68113039 | B30: 123.1743427 | C30: 32.25247801 | D30: 9.302178499
A31: 96.24113153 | B31: 123.8543429 | C31: 49.21070913 | D31: 9.53789416
A32: 92.6011309 | B32: 129.5743438 | C32: 38.92614748 | D32: 11.77253871
A33: 103.6411328 | B33: 122.6543426 | C33: 79.25974419 | D33: 9.125863645
A34: 97.28113171 | B34: 119.014342 | C34: 52.61996289 | D34: 7.981768383
A35: 96.44113157 | B35: 113.7743411 | C35: 49.84872215 | D35: 6.581924592
A36: 100.4011323 | B36: 117.0543417 | C36: 64.33144105 | D36: 7.426329244
A37: 103.3211328 | B37: 117.2143417 | C37: 77.64287634 | D37: 7.470184635
A38: 102.2011326 | B38: 113.454341 | C38: 72.23920186 | D38: 6.504870117
A39: 102.9611327 | B39: 106.1343398 | C39: 75.86329191 | D39: 4.968778496
A40: 105.6411332 | B40: 105.0143396 | C40: 90.15643534 | D40: 4.768147499
A41: 109.8011339 | B41: 104.0143394 | C41: 117.8583586 | D41: 4.595868339
A42: 109.7211339 | B42: 112.5343409 | C42: 117.252639 | D42: 6.288326673
A43: 115.8411349 | B43: 113.014341 | C43: 173.904759 | D43: 6.400390975
A44: 110.401134 | B44: 122.4143426 | C44: 122.5021211 | D44: 9.045618571
A45: 107.2411334 | B45: 123.1743427 | C45: 99.94290863 | D45: 9.302178499
A46: 114.6811347 | B46: 127.9743436 | C46: 161.3852758 | D46: 11.09938108
A47: 101.4411324 | B47: 131.2943441 | C47: 68.7882394 | D47: 12.54178478
A48: 117.7211353 | B48: 127.2943435 | C48: 196.2903226 | D48: 10.82507546
A49: 126.1611367 | B49: 114.4443412 | C49: 338.0514833 | D49: 6.746226391
A50: 124.0111364 | B50: 116.3443415 | C50: 294.3357233 | D50: 7.234806275
A51: 122.4611361 | B51: 121.1443424 | C51: 266.3706217 | D51: 8.632587721
A52: 124.5111365 | B52: 124.794343 | C52: 303.9687879 | D52: 9.873603329
A53: 123.2611362 | B53: 127.3943435 | C53: 280.4554931 | D53: 10.86498529
A54: 126.0611367 | B54: 136.094345 | C54: 335.8811586 | D54: 14.96488685
A55: 121.661136 | B55: 140.2943457 | C55: 252.9931125 | D55: 17.46619359
A56: 117.6611353 | B56: 141.744346 | C56: 195.5332266 | D56: 18.42350763
A57: 126.9111369 | B57: 144.5943465 | C57: 354.7822393 | D57: 20.46073881
A58: 130.9611376 | B58: 139.2943455 | C58: 460.5201141 | D58: 16.83511807
A59: 137.7611388 | B59: 138.2943454 | C59: 713.6058915 | D59: 16.2268441
A60: 142.8111396 | B60: 134.5943447 | C60: 987.9095705 | D60: 14.1612074
A61: 147.8111405 | B61: 136.6943451 | C61: 1363.255809 | D61: 15.29898783
A62: 156.7611421 | B62: 142.7943462 | C62: 2426.202528 | D62: 19.14932749
A63: 158.1111423 | B63: 146.8443469 | C63: 2646.606015 | D63: 22.2270099
A64: 161.5111429 | B64: 164.74435 | C64: 3294.535616 | D64: 42.94975428
A65: 137.6111387 | B65: 167.3943504 | C65: 706.7448003 | D65: 47.34926655

Sheet Data
B1: 1.8-9 K | E1: 10-30 K | H1: 30-90 K
B2: 0.2068024659 | C2: 1.423958802 | E2: 0.2467780708 | F2: 0.3344970463 | H2: 0.9788582733 | I2: 0.7079916632 | L2: 0.2068024659 | M2: 1.423958802 | P2: 478 | Q2: 9.17
B3: 0.5215877041 | C3: 0.6341774631 | E3: 0.9986788742 | F3: 0.4718346276 | H3: 0.9901771053 | I3: 0.8790647529 | L3: 0.5215877041 | M3: 0.6341774631
B4: 0.7513383052 | C4: 1.001509903 | E4: 0.5090954874 | F4: 0.5798606075 | H4: 1.434169619 | I4: 0.8959072721 | L4: 0.7513383052 | M4: 1.001509903
B5: 1.00934743 | C5: 0.9862704887 | E5: 0.509668596 | F5: 0.7506570374 | H5: 1.923982239 | I5: 0.9130724871 | L5: 1.00934743 | M5: 0.9862704887
B6: 1.185688925 | C6: 1.074700898 | E6: 1.001069422 | F6: 0.8495652577 | H6: 4.68092184 | I6: 0.9937522534 | L6: 1.185688925 | M6: 1.074700898
B7: 1.271375386 | C7: 1.529147681 | E7: 0.2405078287 | F7: 0.9723861454 | H7: 2.800965995 | I7: 1.273681016 | L7: 1.271375386 | M7: 1.529147681
B8: 0.978409961 | C8: 1.806764837 | E8: 0.9952670402 | F8: 1.252073006 | H8: 1.894713891 | I8: 1.321025042 | L8: 0.978409961 | M8: 1.806764837
B9: 0.736960008 | C9: 1.815095135 | E9: 1.003512735 | F9: 1.570091076 | H9: 1.933838484 | I9: 1.450400732 | L9: 0.736960008 | M9: 1.815095135
B10: 2.334228186 | C10: 1.735087243 | E10: 0.4815176392 | F10: 1.76236699 | H10: 1.91417623 | I10: 1.599436545 | L10: 2.334228186 | M10: 1.735087243
B11: 0.7460339771 | C11: 2.469389988 | E11: 1.054441487 | F11: 1.895996389 | H11: 4.888707778 | I11: 1.406609983 | L11: 0.7460339771 | M11: 2.469389988
B12: 6.84346826 | C12: 2.429727436 | E12: 13.27654868 | F12: 1.713205463 | H12: 2.793819 | I12: 1.433560052 | L12: 6.84346826 | M12: 2.429727436
B13: 6.999491151 | C13: 2.952994939 | E13: 0.9911696354 | F13: 1.766526912 | H13: 2.829737278 | I13: 2.250746191 | L13: 6.999491151 | M13: 2.952994939
B14: 4.02260127 | C14: 3.723487931 | E14: 1.925754466 | F14: 2.480636029 | H14: 2.77957967 | I14: 1.618225852 | L14: 4.02260127 | M14: 3.723487931
B15: 2.724433349 | C15: 4.158112728 | E15: 3.931456144 | F15: 2.504140431 | H15: 2.793819 | I15: 2.474785134 | L15: 2.724433349 | M15: 4.158112728
B16: 2.22415108 | C16: 4.219773108 | E16: 6.292157802 | F16: 2.918856316 | H16: 1.005472738 | I16: 2.092308763 | L16: 2.22415108 | M16: 4.219773108
B17: 4.991295663 | C17: 7.063802364 | E17: 10.11200811 | F17: 2.388803986 | H17: 5.079694885 | I17: 2.654423529 | L17: 4.991295663 | M17: 7.063802364
B18: 7.09023901 | C18: 6.313833515 | E18: 7.960176383 | F18: 3.855084407 | H18: 4.8143389 | I18: 5.142555781 | L18: 7.09023901 | M18: 6.313833515
B19: 7.022068642 | C19: 5.520246242 | E19: 9.864784693 | F19: 4.984709936 | H19: 1.973770973 | I19: 5.881774778 | L19: 7.022068642 | M19: 5.520246242
B20: 12.29763946 | C20: 4.703664136 | E20: 1.367399348 | F20: 4.493532924 | H20: 4.926321916 | I20: 8.890672943 | L20: 12.29763946 | M20: 4.703664136
B21: 14.77549536 | C21: 5.459637649 | E21: 80.50167024 | F21: 6.695089888 | H21: 9.895446043 | I21: 5.950870653 | L21: 14.77549536 | M21: 5.459637649
B22: 22.96944358 | C22: 3.942050739 | E22: 198.7908947 | F22: 9.760088259 | H22: 18.03783066 | I22: 6.75678057 | L22: 22.96944358 | M22: 3.942050739
B23: 28.96341673 | C23: 4.669172112 | E23: 874.163687 | F23: 6.836653953 | H23: 0.9882815848 | I23: 10.0359359 | L23: 28.96341673 | M23: 4.669172112
B24: 48.8003862 | C24: 4.773414463 | E24: 981.2021426 | F24: 18.48982849 | H24: 14.49826647 | I24: 11.05506683 | L24: 48.8003862 | M24: 4.773414463
B25: 29.62374799 | C25: 5.550802385 | E25: 2028.08386 | F25: 18.48982849 | H25: 24.60874774 | I25: 6.520175453 | L25: 29.62374799 | M25: 5.550802385
B26: 22.09872691 | C26: 6.198720789 | E26: 6681.406066 | F26: 22.38048283 | H26: 66.22894805 | I26: 6.344121638 | L26: 22.09872691 | M26: 6.198720789
B27: 29.2445941 | C27: 7.738809476 | E27: 3179.610437 | F27: 12.3259574 | H27: 88.2824694 | I27: 7.730858041 | L27: 29.2445941 | M27: 7.738809476
B28: 21.1926582 | C28: 7.126466442 | E28: 3956.6758 | F28: 12.64979983 | H28: 49.94969554 | I28: 10.38368637 | L28: 21.1926582 | M28: 7.126466442
B29: 10.06534659 | C29: 8.18402507 | E29: 7376.783894 | F29: 12.92108036 | H29: 57.97726939 | I29: 13.9044739 | L29: 10.06534659 | M29: 8.18402507
B30: 32.25247801 | C30: 9.302178499 | E30: 11613.06078 | F30: 25.23996642 | H30: 108.0725563 | I30: 15.99242533 | L30: 32.25247801 | M30: 9.302178499
B31: 49.21070913 | C31: 9.53789416 | E31: 17399.09823 | F31: 35.52674921 | H31: 884.7060583 | I31: 22.62001523 | L31: 49.21070913 | M31: 9.53789416
B32: 38.92614748 | C32: 11.77253871 | E32: 290015.0237 | F32: 35.11041226 | H32: 24792.79111 | I32: 42.73835103 | L32: 38.92614748 | M32: 11.77253871
B33: 79.25974419 | C33: 9.125863645 | E33: 346306.5601 | F33: 36.11792801 | H33: 18130.22135 | I33: 21.55873294 | L33: 79.25974419 | M33: 9.125863645
B34: 52.61996289 | C34: 7.981768383 | E34: 288821.0638 | F34: 25.06207631 | L34: 52.61996289 | M34: 7.981768383
B35: 49.84872215 | C35: 6.581924592 | E35: 538474.8914 | F35: 30.91326544 | L35: 49.84872215 | M35: 6.581924592
B36: 64.33144105 | C36: 7.426329244 | L36: 64.33144105 | M36: 7.426329244
B37: 77.64287634 | C37: 7.470184635 | L37: 77.64287634 | M37: 7.470184635
B38: 72.23920186 | C38: 6.504870117 | L38: 72.23920186 | M38: 6.504870117
B39: 75.86329191 | C39: 4.968778496 | L39: 75.86329191 | M39: 4.968778496
B40: 90.15643534 | C40: 4.768147499 | L40: 90.15643534 | M40: 4.768147499
B41: 117.8583586 | C41: 4.595868339 | L41: 117.8583586 | M41: 4.595868339
B42: 117.252639 | C42: 6.288326673 | L42: 117.252639 | M42: 6.288326673
B43: 173.904759 | C43: 6.400390975 | L43: 173.904759 | M43: 6.400390975
B44: 122.5021211 | C44: 9.045618571 | L44: 122.5021211 | M44: 9.045618571
B45: 99.94290863 | C45: 9.302178499 | L45: 99.94290863 | M45: 9.302178499
B46: 161.3852758 | C46: 11.09938108 | L46: 161.3852758 | M46: 11.09938108
B47: 68.7882394 | C47: 12.54178478 | L47: 68.7882394 | M47: 12.54178478
B48: 196.2903226 | C48: 10.82507546 | L48: 196.2903226 | M48: 10.82507546
B49: 338.0514833 | C49: 6.746226391 | L49: 338.0514833 | M49: 6.746226391
B50: 294.3357233 | C50: 7.234806275 | L50: 294.3357233 | M50: 7.234806275
B51: 266.3706217 | C51: 8.632587721 | L51: 266.3706217 | M51: 8.632587721
B52: 303.9687879 | C52: 9.873603329 | L52: 303.9687879 | M52: 9.873603329
B53: 280.4554931 | C53: 10.86498529 | L53: 280.4554931 | M53: 10.86498529
B54: 335.8811586 | C54: 14.96488685 | L54: 335.8811586 | M54: 14.96488685
B55: 252.9931125 | C55: 17.46619359 | L55: 252.9931125 | M55: 17.46619359
B56: 195.5332266 | C56: 18.42350763 | L56: 195.5332266 | M56: 18.42350763
B57: 354.7822393 | C57: 20.46073881 | L57: 354.7822393 | M57: 20.46073881
B58: 460.5201141 | C58: 16.83511807 | L58: 460.5201141 | M58: 16.83511807
B59: 713.6058915 | C59: 16.2268441 | L59: 713.6058915 | M59: 16.2268441
B60: 987.9095705 | C60: 14.1612074 | L60: 987.9095705 | M60: 14.1612074
B61: 1363.255809 | C61: 15.29898783 | L61: 1363.255809 | M61: 15.29898783
B62: 2426.202528 | C62: 19.14932749 | L62: 2426.202528 | M62: 19.14932749
B63: 2646.606015 | C63: 22.2270099 | L63: 2646.606015 | M63: 22.2270099
B64: 3294.535616 | C64: 42.94975428 | L64: 3294.535616 | M64: 42.94975428
B65: 706.7448003 | C65: 47.34926655 | L65: 706.7448003 | M65: 47.34926655
L66: 0.2467780708 | M66: 0.3344970463
L67: 0.9986788742 | M67: 0.4718346276
L68: 0.5090954874 | M68: 0.5798606075
L69: 0.509668596 | M69: 0.7506570374
L70: 1.001069422 | M70: 0.8495652577
L71: 0.2405078287 | M71: 0.9723861454
L72: 0.9952670402 | M72: 1.252073006
L73: 1.003512735 | M73: 1.570091076
L74: 0.4815176392 | M74: 1.76236699
L75: 1.054441487 | M75: 1.895996389
L76: 13.27654868 | M76: 1.713205463
L77: 0.9911696354 | M77: 1.766526912
L78: 1.925754466 | M78: 2.480636029
L79: 3.931456144 | M79: 2.504140431
L80: 6.292157802 | M80: 2.918856316
L81: 10.11200811 | M81: 2.388803986
L82: 7.960176383 | M82: 3.855084407
L83: 9.864784693 | M83: 4.984709936
L84: 1.367399348 | M84: 4.493532924
L85: 80.50167024 | M85: 6.695089888
L86: 198.7908947 | M86: 9.760088259
L87: 874.163687 | M87: 6.836653953
L88: 981.2021426 | M88: 18.48982849
L89: 2028.08386 | M89: 18.48982849
L90: 6681.406066 | M90: 22.38048283
L91: 3179.610437 | M91: 12.3259574
L92: 3956.6758 | M92: 12.64979983
L93: 7376.783894 | M93: 12.92108036
L94: 11613.06078 | M94: 25.23996642
L95: 17399.09823 | M95: 35.52674921
L96: 290015.0237 | M96: 35.11041226
L97: 346306.5601 | M97: 36.11792801
L98: 288821.0638 | M98: 25.06207631
L99: 538474.8914 | M99: 30.91326544
L100: 0.9788582733 | M100: 0.7079916632
L101: 0.9901771053 | M101: 0.8790647529
L102: 1.434169619 | M102: 0.8959072721
L103: 1.923982239 | M103: 0.9130724871
L104: 4.68092184 | M104: 0.9937522534
L105: 2.800965995 | M105: 1.273681016
L106: 1.894713891 | M106: 1.321025042
L107: 1.933838484 | M107: 1.450400732
L108: 1.91417623 | M108: 1.599436545
L109: 4.888707778 | M109: 1.406609983
L110: 2.793819 | M110: 1.433560052
L111: 2.829737278 | M111: 2.250746191
L112: 2.77957967 | M112: 1.618225852
L113: 2.793819 | M113: 2.474785134
L114: 1.005472738 | M114: 2.092308763
L115: 5.079694885 | M115: 2.654423529
L116: 4.8143389 | M116: 5.142555781
L117: 1.973770973 | M117: 5.881774778
L118: 4.926321916 | M118: 8.890672943
L119: 9.895446043 | M119: 5.950870653
L120: 18.03783066 | M120: 6.75678057
L121: 0.9882815848 | M121: 10.0359359
L122: 14.49826647 | M122: 11.05506683
L123: 24.60874774 | M123: 6.520175453
L124: 66.22894805 | M124: 6.344121638
L125: 88.2824694 | M125: 7.730858041
L126: 49.94969554 | M126: 10.38368637
L127: 57.97726939 | M127: 13.9044739
L128: 108.0725563 | M128: 15.99242533
L129: 884.7060583 | M129: 22.62001523
L130: 24792.79111 | M130: 42.73835103
L131: 18130.22135 | M131: 21.55873294
